bitfinex/quotes_BTCUSD_20251124
["timestamp","ask_amount","ask_price","bid_price","bid_amount"]
[1764026580589,2.18023675,88689.0,88688.0,0.00131607]
[1764026582139,2.13023675,88689.0,88688.0,0.00131607]
[1764026582680,2.18023675,88689.0,88688.0,0.00131607]
[1764026582830,2.13023675,88689.0,88688.0,0.00131607]
[1764026584219,2.18023675,88689.0,88688.0,0.00131607]
[1764026584940,2.18029088,88689.0,88688.0,0.00131607]
[1764026585707,2.13029088,88689.0,88688.0,0.00131607]
[1764026586007,2.18029088,88689.0,88688.0,0.00131607]
[1764026586822,2.13029088,88689.0,88688.0,0.00131607]
[1764026586941,2.18029088,88689.0,88688.0,0.00131607]
[1764026589518,2.12317088,88689.0,88688.0,0.00131607]
[1764026589884,2.13029088,88689.0,88688.0,0.00131607]
[1764026593011,2.18029088,88689.0,88688.0,0.00131607]
[1764026594557,2.13029088,88689.0,88688.0,0.00131607]
[1764026595219,2.06064789,88689.0,88688.0,0.00131607]
[1764026595420,2.06776789,88689.0,88688.0,0.00131607]
[1764026597170,2.20106751,88689.0,88688.0,0.00131607]
[1764026597310,2.1833756,88689.0,88688.0,0.00131607]
[1764026597934,2.2223556,88689.0,88688.0,0.00131607]
[1764026598778,2.28487859,88689.0,88688.0,0.00131607]
[1764026599117,2.34400859,88689.0,88688.0,0.00131607]
[1764026599251,2.29400859,88689.0,88688.0,0.00131607]
[1764026600249,2.34400859,88689.0,88688.0,0.00131607]
[1764026600453,2.3287195,88689.0,88688.0,0.00131607]
[1764026600650,2.34641152,88689.0,88688.0,0.00131607]
[1764026600987,2.39641152,88689.0,88688.0,0.00131607]
[1764026601186,2.34641152,88689.0,88688.0,0.00131607]
[1764026601911,2.39641152,88689.0,88688.0,0.00131607]
[1764026602216,2.34641152,88689.0,88688.0,0.00131607]
[1764026602880,2.34641127,88689.0,88688.0,0.00131607]
[1764026603298,2.39641127,88689.0,88688.0,0.00131607]
[1764026604066,2.34641127,88689.0,88688.0,0.00131607]
[1764026604266,2.39641127,88689.0,88688.0,0.00131607]
[1764026604803,2.30743127,88689.0,88688.0,0.00131607]
[1764026605008,2.21019762,88689.0,88688.0,0.00131607]
[1764026605739,1.97556052,88689.0,88688.0,0.00131607]
[1764026607127,0.36271677,88689.0,88688.0,0.00131607]
[1764026607248,0.36269801,88689.0,88688.0,0.00131607]
[1764026607674,0.36169801,88689.0,88688.0,0.00131607]
[1764026610268,0.36156276,88689.0,88688.0,0.00131607]
[1764026610869,0.34387074,88689.0,88688.0,0.00131607]
[1764026611628,0.34387074,88689.0,88688.0,0.03999607]
[1764026611846,4.897e-05,88693.0,88688.0,0.03999607]
[1764026612052,0.02099406,88692.0,88688.0,0.01545]
[1764026612248,0.02099406,88691.0,88688.0,0.01545]
[1764026612425,4.897e-05,88693.0,88689.0,0.02323]
[1764026612626,0.02098958,88692.0,88690.0,0.01545]
[1764026612849,4.897e-05,88693.0,88690.0,0.01545]
[1764026613881,0.01132381,88693.0,88690.0,0.01545]
[1764026614195,4.897e-05,88693.0,88690.0,0.01545]
[1764026614885,4.897e-05,88693.0,88687.0,0.00913]
[1764026614886,4.897e-05,88693.0,88692.0,0.01545]
[1764026615113,4.897e-05,88693.0,88692.0,0.03868]
[1764026617366,4.897e-05,88693.0,88692.0,0.0398736]
[1764026617790,4.897e-05,88693.0,88692.0,0.0408736]
[1764026618677,4.897e-05,88693.0,88692.0,0.0418736]
[1764026619564,4.897e-05,88693.0,88692.0,0.26737308]
[1764026621813,4.897e-05,88693.0,88692.0,0.26637308]
[1764026622022,4.897e-05,88693.0,88692.0,0.26537308]
[1764026622225,4.897e-05,88693.0,88692.0,0.26637308]
[1764026623292,4.897e-05,88693.0,88692.0,0.26737308]
[1764026623724,4.897e-05,88693.0,88692.0,0.0031936]
[1764026624490,4.897e-05,88693.0,88692.0,0.0021936]
[1764026627392,4.897e-05,88693.0,88692.0,0.0183436]
[1764026628925,4.897e-05,88693.0,88692.0,0.0021936]
[1764026636190,0.01127459,88695.0,88692.0,0.0021936]
[1764026636548,0.01127446,88696.0,88692.0,0.001]
[1764026636734,0.02262433,88697.0,88692.0,0.001]
[1764026637031,0.01135,88697.0,88692.0,0.001]
[1764026637334,0.01135,88697.0,88687.0,0.00913]
[1764026638297,0.02262433,88697.0,88687.0,0.00913]
[1764026640953,0.01135,88697.0,88688.0,0.02302]
[1764026641153,0.02262433,88697.0,88688.0,0.02302]
[1764026641619,0.02262433,88697.0,88694.0,0.00113236]
[1764026641814,0.02262433,88697.0,88688.0,0.02302]
[1764026642068,0.01135,88697.0,88688.0,0.02302]
[1764026642272,0.02262433,88697.0,88688.0,0.02302]
[1764026642841,0.01127446,88696.0,88688.0,0.02302]
[1764026643066,0.01135,88697.0,88688.0,0.02302]
[1764026643499,0.021007,88696.0,88688.0,0.02302]
[1764026643718,0.01135,88697.0,88688.0,0.02302]
[1764026643942,0.02100701,88696.0,88688.0,0.02302]
[1764026644191,0.01135,88697.0,88688.0,0.02302]
[1764026644419,0.02100725,88696.0,88688.0,0.02302]
[1764026644636,0.01135,88697.0,88688.0,0.02302]
[1764026644863,0.0210099,88696.0,88688.0,0.02302]
[1764026645090,0.01135,88697.0,88688.0,0.02302]
[1764026645306,0.0210099,88696.0,88688.0,0.02302]
[1764026645524,0.01135,88697.0,88688.0,0.02302]
[1764026645759,0.02101001,88696.0,88688.0,0.02302]
[1764026645975,0.01135,88697.0,88688.0,0.02302]
[1764026646188,0.02101001,88696.0,88688.0,0.02302]
[1764026646402,0.01135,88697.0,88688.0,0.02302]
[1764026646617,0.02100988,88696.0,88688.0,0.02302]
[1764026646823,0.02262433,88697.0,88688.0,0.02302]
[1764026647035,0.03228435,88696.0,88688.0,0.02302]
[1764026647243,0.01127446,88696.0,88688.0,0.02302]
[1764026647455,0.01127446,88696.0,88695.0,0.00110174]
[1764026647662,0.03228422,88696.0,88695.0,0.00110174]
[1764026648081,0.27368353,88696.0,88695.0,0.00110174]
[1764026648211,0.29726353,88696.0,88695.0,0.00110174]
[1764026648414,2.62738353,88696.0,88695.0,0.00110174]
[1764026652033,2.62737663,88696.0,88695.0,0.00110174]
[1764026653422,2.34400286,88696.0,88695.0,0.00110174]
[1764026653832,0.34400286,88696.0,88695.0,0.00110174]
[1764026656359,0.34400286,88696.0,88695.0,0.00122044]
[1764026657613,0.34400286,88696.0,88695.0,0.04022044]
[1764026658553,0.34400286,88696.0,88695.0,0.01689044]
[1764026660150,0.34400286,88696.0,88695.0,0.00122044]
[1764026663970,0.56949217,88696.0,88695.0,0.00122044]
[1764026664178,0.59325217,88696.0,88695.0,0.00122044]
[1764026664956,0.60896217,88696.0,88695.0,0.00122044]
[1764026665903,0.38347286,88696.0,88695.0,0.00122044]
[1764026666251,0.35971286,88696.0,88695.0,0.00122044]
[1764026666452,0.56949217,88696.0,88695.0,0.00122044]
[1764026666661,0.34400286,88696.0,88695.0,0.00122044]
[1764026669823,0.34400286,88696.0,88695.0,0.04022044]
[1764026670222,0.34400286,88696.0,88695.0,0.01689044]
[1764026670847,0.34400286,88696.0,88695.0,0.00122044]
[1764026671869,0.34402098,88696.0,88695.0,0.00122044]
[1764026680604,0.34402098,88696.0,88695.0,0.02455044]
[1764026681957,0.34402098,88696.0,88695.0,0.00122044]
[1764026683292,0.34403184,88696.0,88695.0,0.00122044]
[1764026701901,0.34403184,88696.0,88695.0,0.01725044]
[1764026702104,0.34403184,88696.0,88695.0,0.04049044]
[1764026703868,0.36054184,88696.0,88695.0,0.00122044]
[1764026704069,0.38534184,88696.0,88695.0,0.00122044]
[1764026704474,0.36054184,88696.0,88695.0,0.00122044]
[1764026705105,0.34403184,88696.0,88695.0,0.00122044]
[1764026707827,0.38534184,88696.0,88695.0,0.00122044]
[1764026708156,0.36054184,88696.0,88695.0,0.00122044]
[1764026708590,0.38535049,88696.0,88695.0,0.00122044]
[1764026708792,2.44787348,88696.0,88695.0,0.00122044]
[1764026708952,2.46003348,88696.0,88695.0,0.00122044]
[1764026710579,2.46103348,88696.0,88695.0,0.00122044]
[1764026710784,2.54375492,88696.0,88695.0,0.00122044]
[1764026711901,2.54475492,88696.0,88695.0,0.00122044]
[1764026713613,2.22175492,88696.0,88695.0,0.00122044]
[1764026715881,2.22887492,88696.0,88695.0,0.00122044]
[1764026719014,2.55187492,88696.0,88695.0,0.00122044]
[1764026719355,2.40663049,88696.0,88695.0,0.00122044]
[1764026720570,2.39951049,88696.0,88695.0,0.00122044]
[1764026720757,2.40663049,88696.0,88695.0,0.00122044]
[1764026722157,2.40563049,88696.0,88695.0,0.00122044]
[1764026728846,2.39851049,88696.0,88695.0,0.00122044]
[1764026729048,2.40563049,88696.0,88695.0,0.00122044]
[1764026735898,2.42332053,88696.0,88695.0,0.00122044]
[1764026739630,2.47332053,88696.0,88695.0,0.00122044]
[1764026739801,2.48584352,88696.0,88695.0,0.00122044]
[1764026742151,2.52061613,88696.0,88695.0,0.00122044]
[1764026743102,2.32453628,88696.0,88695.0,0.00122044]
[1764026743424,2.33534628,88696.0,88695.0,0.00122044]
[1764026745028,2.55665461,88696.0,88695.0,0.00122044]
[1764026745280,2.43455326,88696.0,88695.0,0.00122044]
[1764026745778,2.43355326,88696.0,88695.0,0.00122044]
[1764026746141,2.40271235,88696.0,88695.0,0.00122044]
[1764026746343,2.40371235,88696.0,88695.0,0.00122044]
[1764026746872,2.40271235,88696.0,88695.0,0.00122044]
[1764026747498,2.35371235,88696.0,88695.0,0.00122044]
[1764026747694,2.43187193,88696.0,88695.0,0.00122044]
[1764026748457,2.40371235,88696.0,88695.0,0.00122044]
[1764026749970,2.45371235,88696.0,88695.0,0.00122044]
[1764026750172,2.40371235,88696.0,88695.0,0.00122044]
[1764026750995,2.35371235,88696.0,88695.0,0.00122044]
[1764026751196,2.40371235,88696.0,88695.0,0.00122044]
[1764026759891,2.46893366,88696.0,88695.0,0.00122044]
[1764026760043,2.51893366,88696.0,88695.0,0.00122044]
[1764026760235,2.65151235,88696.0,88695.0,0.00122044]
[1764026761814,2.66920437,88696.0,88695.0,0.00122044]
[1764026762667,2.78810437,88696.0,88695.0,0.00122044]
[1764026763145,2.81834803,88696.0,88695.0,0.00122044]
[1764026763444,2.76834803,88696.0,88695.0,0.00122044]
[1764026763777,2.76834803,88696.0,88670.0,0.0002]
[1764026763778,2.55159467,88671.0,88670.0,0.0002]
[1764026763907,2.6975318,88671.0,88670.0,0.0002]
[1764026764111,2.7083418,88671.0,88670.0,0.0002]
[1764026764314,2.71286423,88671.0,88670.0,0.00096547]
[1764026764541,2.66286423,88671.0,88670.0,0.00096547]
[1764026764702,2.71286423,88671.0,88670.0,0.00096547]
[1764026765263,2.66286423,88671.0,88670.0,0.00096547]
[1764026765459,2.71486423,88671.0,88670.0,0.00096547]
[1764026765665,2.66486423,88671.0,88670.0,0.00096547]
[1764026765870,2.66386423,88671.0,88670.0,0.00096547]
[1764026766269,2.66486423,88671.0,88670.0,0.00096547]
[1764026767062,2.71486423,88671.0,88670.0,0.00096547]
[1764026767800,2.66486423,88671.0,88670.0,0.00096547]
[1764026769135,2.71486423,88671.0,88670.0,0.00096547]
[1764026769279,2.66486423,88671.0,88670.0,0.00096547]
[1764026769474,2.71486423,88671.0,88670.0,0.00096547]
[1764026770536,2.78219856,88671.0,88670.0,0.00096547]
[1764026770746,2.71486423,88671.0,88670.0,0.00096547]
[1764026771441,2.66486423,88671.0,88670.0,0.00096547]
[1764026771647,2.71486423,88671.0,88670.0,0.00096547]
[1764026775973,2.66486423,88671.0,88670.0,0.00096547]
[1764026776887,2.71486423,88671.0,88670.0,0.00096547]
[1764026777043,2.66486423,88671.0,88670.0,0.00096547]
[1764026778149,2.71486423,88671.0,88670.0,0.00096547]
[1764026779238,2.66486423,88671.0,88670.0,0.00096547]
[1764026779438,2.83008554,88671.0,88670.0,0.00096547]
[1764026779635,2.66486423,88671.0,88670.0,0.00096547]
[1764026779843,2.71486423,88671.0,88670.0,0.00096547]
[1764026780672,2.66486423,88671.0,88670.0,0.00096547]
[1764026781037,2.71486423,88671.0,88670.0,0.00096547]
[1764026781408,2.66486423,88671.0,88670.0,0.00096547]
[1764026781782,2.71486423,88671.0,88670.0,0.00096547]
[1764026783472,2.66486423,88671.0,88670.0,0.00096547]
[1764026783939,2.71486423,88671.0,88670.0,0.0010842]
[1764026784146,2.64693423,88671.0,88670.0,0.0010842]
[1764026784341,2.65405423,88671.0,88670.0,0.0010842]
[1764026784917,2.66486423,88671.0,88670.0,0.0010842]
[1764026785483,2.68255821,88671.0,88670.0,0.0010842]
[1764026786463,2.45700533,88671.0,88670.0,0.0010842]
[1764026787366,2.68255821,88671.0,88670.0,0.0010842]
[1764026788371,2.73255821,88671.0,88670.0,0.0010842]
[1764026791654,2.68255821,88671.0,88670.0,0.0010842]
[1764026791859,2.73255821,88671.0,88670.0,0.0010842]
[1764026792087,2.68255821,88671.0,88670.0,0.0010842]
[1764026792242,2.69306364,88671.0,88670.0,0.0010842]
[1764026792647,2.74306364,88671.0,88670.0,0.0010842]
[1764026793367,2.69306364,88671.0,88670.0,0.0010842]
[1764026793569,2.67513364,88671.0,88670.0,0.0010842]
[1764026793802,2.68225364,88671.0,88670.0,0.0010842]
[1764026794422,2.74306364,88671.0,88670.0,0.0010842]
[1764026794982,2.73225364,88671.0,88670.0,0.0010842]
[1764026795607,2.74306364,88671.0,88670.0,0.0010842]
[1764026795922,2.69306364,88671.0,88670.0,0.0010842]
[1764026796142,2.74306364,88671.0,88670.0,0.0010842]
[1764026796485,2.76728526,88671.0,88670.0,0.0010842]
[1764026797191,2.7673212,88671.0,88670.0,0.0010842]
[1764026800352,2.7173212,88671.0,88670.0,0.0010842]
[1764026800746,2.7673212,88671.0,88670.0,0.0010842]
[1764026801347,2.76732998,88671.0,88670.0,0.0010842]
[1764026803625,2.73579023,88671.0,88670.0,0.0010842]
[1764026803813,2.76733553,88671.0,88670.0,0.0010842]
[1764026804265,2.68859553,88671.0,88670.0,0.0253942]
[1764026804581,2.59845582,88671.0,88670.0,0.0409442]
[1764026805268,2.59845582,88671.0,88670.0,0.01651]
[1764026805781,2.59845582,88671.0,88669.0,0.01235]
[1764026805989,2.234549,88670.0,88669.0,0.01235]
[1764026806354,2.241669,88670.0,88669.0,0.02886]
[1764026806670,2.254019,88670.0,88669.0,0.05334]
[1764026807278,2.254019,88670.0,88669.0,0.02886]
[1764026807668,2.255019,88670.0,88669.0,0.02886]
[1764026807863,2.242669,88670.0,88669.0,0.05334]
[1764026809483,2.241669,88670.0,88669.0,0.05334]
[1764026812827,0.3511502,88670.0,88669.0,0.05334]
[1764026812996,0.3440302,88670.0,88669.0,0.05334]
[1764026814485,0.0210302,88670.0,88669.0,0.05334]
[1764026814692,0.323,88680.0,88669.0,0.05334]
[1764026814879,0.323,88678.0,88675.0,0.01132]
[1764026815080,0.02100775,88677.0,88675.0,0.01132]
[1764026815211,0.02100775,88677.0,88676.0,0.02377]
[1764026815424,0.02100775,88677.0,88676.0,0.0503]
[1764026816261,0.01127637,88681.0,88676.0,0.0503]
[1764026816470,0.02099098,88680.0,88677.0,0.02377]
[1764026816694,0.02099098,88679.0,88677.0,0.02377]
[1764026816940,0.323,88682.0,88680.0,0.01521]
[1764026817154,0.00093359,88685.0,88681.0,0.02653]
[1764026817350,0.00093359,88685.0,88684.0,0.01521]
[1764026817553,0.00093359,88685.0,88684.0,0.03898]
[1764026818589,0.00712,88692.0,88684.0,0.03998]
[1764026818942,2.0,88689.0,88685.0,0.02377]
[1764026819087,0.02097401,88688.0,88685.0,0.02377]
[1764026819290,2.0,88689.0,88685.0,0.02377]
[1764026819712,2.0,88689.0,88688.0,0.02653]
[1764026819880,2.0209666,88689.0,88688.0,0.02653]
[1764026820082,2.0209666,88689.0,88688.0,0.0503]
[1764026820281,0.00024488,88693.0,88688.0,0.0503]
[1764026820282,2.0,88692.0,88688.0,0.0503]
[1764026820497,0.00024488,88693.0,88691.0,0.01521]
[1764026820719,0.00024488,88693.0,88692.0,0.03898]
[1764026821978,0.00024488,88693.0,88692.0,0.03998]
[1764026822781,0.00024488,88693.0,88692.0,0.26547948]
[1764026822964,0.00024488,88693.0,88692.0,0.03998]
[1764026823361,0.00024488,88693.0,88692.0,0.26547948]
[1764026824099,0.00024488,88693.0,88692.0,0.27547948]
[1764026824869,0.00024488,88693.0,88692.0,0.27647948]
[1764026825264,0.00024488,88693.0,88692.0,0.27534418]
[1764026825863,0.00024488,88693.0,88692.0,0.27473975]
[1764026826397,0.00024488,88693.0,88692.0,0.27573975]
[1764026826719,0.323,88717.0,88710.0,0.01127268]
[1764026826881,0.00712,88725.0,88710.0,0.01127268]
[1764026826882,0.323,88723.0,88718.0,0.02614]
[1764026827098,2.0,88720.0,88718.0,0.01093]
[1764026827307,2.0,88724.0,88718.0,0.01093]
[1764026827506,0.323,88723.0,88718.0,0.01093]
[1764026827739,0.323,88719.0,88718.0,0.01093]
[1764026828130,0.323,88719.0,88718.0,0.02614]
[1764026828511,0.323,88719.0,88718.0,0.04991]
[1764026828894,0.01174494,88724.0,88718.0,0.04991]
[1764026829103,0.01174494,88724.0,88723.0,0.02653]
[1764026829252,0.323,88724.0,88723.0,0.02653]
[1764026829445,0.323,88724.0,88723.0,0.0503]
[1764026830282,0.32311158,88724.0,88723.0,0.0503]
[1764026830914,0.33454473,88724.0,88723.0,0.0503]
[1764026831286,0.35541999,88724.0,88723.0,0.0503]
[1764026831490,2.46243752,88724.0,88723.0,0.02653]
[1764026832293,2.46243752,88724.0,88723.0,0.0503]
[1764026833335,2.46243752,88724.0,88718.0,0.01093]
[1764026833336,0.33427128,88721.0,88718.0,0.01093]
[1764026833588,0.323,88719.0,88718.0,0.01093]
[1764026833796,0.34387526,88719.0,88718.0,0.01093]
[1764026834012,0.34387526,88719.0,88718.0,0.05168]
[1764026839361,0.34387526,88719.0,88718.0,0.02696]
[1764026842030,0.02087526,88719.0,88718.0,0.02696]
[1764026844722,0.22543339,88718.0,88716.0,0.01093]
[1764026844925,0.02087526,88717.0,88716.0,0.01093]
[1764026845086,0.02160966,88717.0,88716.0,0.01093]
[1764026845286,0.02160966,88717.0,88716.0,0.05168]
[1764026848099,0.0007344,88717.0,88716.0,0.05168]
[1764026848334,0.02170492,88717.0,88716.0,0.05168]
[1764026848653,0.02170492,88717.0,88716.0,0.07422384]
[1764026853604,0.02175014,88717.0,88716.0,0.07422384]
[1764026854240,0.02175014,88717.0,88716.0,0.05168]
[1764026870124,0.02062531,88717.0,88716.0,0.05168]
[1764026872358,0.323,88723.0,88716.0,0.05168]
[1764026872547,0.01127116,88722.0,88716.0,0.05168]
[1764026872748,0.01127154,88719.0,88716.0,0.05168]
[1764026872950,0.22543524,88718.0,88716.0,0.05168]
[1764026873156,0.22543524,88718.0,88716.0,0.02696]
[1764026873508,0.22543524,88718.0,88717.0,0.03882]
[1764026874422,0.22543524,88718.0,88717.0,0.01625]
[1764026875227,0.22543524,88718.0,88717.0,0.03882]
[1764026877508,0.11828919,88718.0,88715.0,0.01126]
[1764026877845,0.34372497,88718.0,88715.0,0.01126]
[1764026880005,0.34372497,88718.0,88715.0,0.03383]
[1764026880182,0.10701753,88718.0,88717.0,0.01625]
[1764026880590,0.10701753,88718.0,88717.0,0.03882]
[1764026882050,2.0,88724.0,88717.0,0.03882]
[1764026882257,2.0,88722.0,88718.0,0.02257]
[1764026882475,2.52103701,88721.0,88720.0,0.01129]
[1764026882674,2.02103701,88721.0,88720.0,0.01129]
[1764026882893,2.34403701,88721.0,88720.0,0.05011]
[1764026884918,0.34403701,88721.0,88720.0,0.05011]
[1764026885466,0.323,88721.0,88720.0,0.05011]
[1764026893930,0.00024475,88725.0,88724.0,0.23541815]
[1764026894139,0.00034286,88725.0,88724.0,0.26949815]
[1764026894338,0.00034286,88725.0,88724.0,0.28895815]
[1764026894969,0.00034286,88725.0,88724.0,0.06354]
[1764026903560,2.0,88734.0,88724.0,0.06354]
[1764026903755,0.02101401,88733.0,88725.0,0.02946]
[1764026903958,0.02101401,88732.0,88725.0,0.02946]
[1764026904160,2.0,88734.0,88725.0,0.02946]
[1764026904295,0.10701753,88735.0,88725.0,0.02946]
[1764026904296,2.0,88732.0,88725.0,0.02946]
[1764026904815,2.0,88732.0,88726.0,0.01481]
[1764026905207,2.0,88732.0,88726.0,0.04427]
[1764026905635,0.02101552,88731.0,88726.0,0.04427]
[1764026905959,2.01126989,88732.0,88726.0,0.01481]
[1764026905960,2.0,88732.0,88726.0,0.01481]
[1764026906206,0.02101558,88731.0,88726.0,0.01481]
[1764026906360,0.01126989,88732.0,88726.0,0.01481]
[1764026906733,0.02101687,88731.0,88726.0,0.01481]
[1764026906936,2.0,88732.0,88726.0,0.01481]
[1764026907110,0.02101687,88731.0,88726.0,0.01481]
[1764026907273,2.0,88732.0,88726.0,0.01481]
[1764026907473,0.51151447,88733.0,88726.0,0.01481]
[1764026907474,0.0210185,88731.0,88726.0,0.01481]
[1764026907661,2.0,88732.0,88726.0,0.04427]
[1764026907862,0.0210185,88731.0,88726.0,0.04427]
[1764026908065,2.0,88732.0,88726.0,0.04427]
[1764026908263,0.0210185,88731.0,88726.0,0.04427]
[1764026908460,2.0,88732.0,88726.0,0.04427]
[1764026908674,0.02102049,88731.0,88726.0,0.04427]
[1764026909025,2.0,88732.0,88726.0,0.04427]
[1764026909171,0.02102049,88731.0,88726.0,0.04427]
[1764026909370,0.02102286,88730.0,88726.0,0.04427]
[1764026909572,2.0,88732.0,88726.0,0.04427]
[1764026909771,0.02102286,88731.0,88726.0,0.04427]
[1764026910020,0.02102286,88730.0,88726.0,0.04427]
[1764026910217,2.0,88732.0,88726.0,0.04427]
[1764026910420,0.02102333,88731.0,88726.0,0.04427]
[1764026910735,0.02102333,88730.0,88726.0,0.04427]
[1764026910934,2.0,88732.0,88726.0,0.04427]
[1764026911159,0.02102334,88731.0,88726.0,0.04427]
[1764026911389,0.01127027,88729.0,88726.0,0.04427]
[1764026911593,0.01127027,88729.0,88720.0,0.01841]
[1764026911594,0.23669332,88723.0,88720.0,0.01129]
[1764026911793,0.2254248,88722.0,88720.0,0.01129]
[1764026913717,0.23669332,88723.0,88720.0,0.01129]
[1764026913906,0.021026,88722.0,88720.0,0.01129]
[1764026914102,0.23669332,88723.0,88720.0,0.01129]
[1764026914306,0.021026,88722.0,88720.0,0.01129]
[1764026914475,0.021026,88721.0,88720.0,0.01129]
[1764026914697,0.021026,88722.0,88720.0,0.01129]
[1764026914856,0.021026,88721.0,88720.0,0.01129]
[1764026915055,0.24308104,88727.0,88721.0,0.01481]
[1764026915056,0.0064,88727.0,88721.0,0.01481]
[1764026915265,2.0,88725.0,88721.0,0.04427]
[1764026915488,0.02102642,88724.0,88721.0,0.04427]
[1764026915710,0.323,88731.0,88729.0,0.03408]
[1764026915883,2.3440267,88730.0,88729.0,0.01481]
[1764026916304,2.3440267,88730.0,88729.0,0.03408]
[1764026916507,2.3440267,88730.0,88729.0,0.06354]
[1764026917536,0.3440267,88730.0,88729.0,0.06354]
[1764026920733,0.3440267,88730.0,88729.0,0.01481]
[1764026920865,0.3440267,88730.0,88721.0,0.01481]
[1764026920866,0.23669097,88724.0,88721.0,0.01481]
[1764026921093,0.0210267,88723.0,88721.0,0.01481]
[1764026921282,0.0210267,88722.0,88721.0,0.01481]
[1764026922727,0.0210267,88722.0,88721.0,0.03408]
[1764026922884,0.0210267,88722.0,88721.0,0.06354]
[1764026923485,0.0112709,88724.0,88721.0,0.06354]
[1764026925139,2.01127065,88726.0,88723.0,0.01884]
[1764026925455,2.0,88724.0,88722.0,0.02995]
[1764026925614,0.02102496,88723.0,88722.0,0.02995]
[1764026926184,0.02102496,88723.0,88722.0,0.04879]
[1764026930272,0.55967467,88730.0,88722.0,0.04879]
[1764026930273,0.33427014,88730.0,88722.0,0.04879]
[1764026930481,2.01127039,88728.0,88725.0,0.01988]
[1764026930678,2.0,88726.0,88725.0,0.01988]
[1764026930883,2.0,88726.0,88721.0,0.01481]
[1764026930884,2.0,88725.0,88721.0,0.01481]
[1764026931260,0.02102937,88724.0,88721.0,0.01481]
[1764026931471,0.323,88730.0,88722.0,0.0284]
[1764026931620,2.0,88728.0,88723.0,0.01988]
[1764026931820,2.0,88726.0,88723.0,0.01988]
[1764026932160,0.02103073,88725.0,88724.0,0.0284]
[1764026932386,0.323,88730.0,88729.0,0.01377]
[1764026932585,0.34403156,88730.0,88729.0,0.03365]
[1764026932774,0.34403156,88730.0,88729.0,0.06205]
[1764026936814,0.323,88730.0,88729.0,0.06205]
[1764026937021,0.34402568,88730.0,88729.0,0.06205]
[1764026937857,0.323,88730.0,88729.0,0.06205]
[1764026940575,0.00024471,88733.0,88730.0,0.02127014]
[1764026940745,0.00024471,88733.0,88732.0,0.03365]
[1764026941094,0.00024471,88733.0,88732.0,0.06205]
[1764026943053,0.00024471,88733.0,88732.0,0.07205]
[1764026944548,0.00024471,88733.0,88732.0,0.09458978]
[1764026946813,2.0,88750.0,88746.0,0.01377]
[1764026947015,0.02099918,88749.0,88746.0,0.01377]
[1764026947219,9.816e-05,88750.0,88749.0,0.03365]
[1764026947394,9.816e-05,88750.0,88749.0,0.06205]
[1764026955256,9.816e-05,88750.0,88749.0,0.08458546]
[1764026957337,9.816e-05,88750.0,88749.0,0.08558546]
[1764026957696,0.00061805,88750.0,88749.0,0.08658546]
[1764026960644,0.01829769,88750.0,88749.0,0.08658546]
[1764026966941,0.01829769,88750.0,88749.0,0.31194011]
[1764026967133,0.00061805,88750.0,88749.0,0.29940465]
[1764026967338,0.00061805,88750.0,88749.0,0.33327798]
[1764026967775,0.00061805,88750.0,88749.0,0.09792333]
[1764026974242,0.00061805,88750.0,88749.0,0.32327798]
[1764026974443,0.00061805,88750.0,88749.0,0.33327798]
[1764026975774,0.0004,88760.0,88759.0,0.22532926]
[1764026975971,0.0004,88760.0,88759.0,0.29735218]
[1764026976178,0.00070576,88760.0,88759.0,0.30331926]
[1764026976498,0.00070576,88760.0,88759.0,0.33718918]
[1764026991989,0.00030576,88760.0,88759.0,0.33718918]
[1764026992194,0.61671156,88780.0,88778.0,0.01278]
[1764026992537,2.0,88787.0,88779.0,0.01859]
[1764026992651,0.02099446,88786.0,88779.0,0.04621]
[1764026992859,2.00011861,88787.0,88779.0,0.04621]
[1764026992860,2.0,88784.0,88779.0,0.04621]
[1764026993210,0.02099446,88783.0,88780.0,0.02762]
[1764026993446,0.02099446,88782.0,88781.0,0.01178]
[1764026993930,0.02099446,88783.0,88781.0,0.03037]
[1764026994078,0.02288086,88787.0,88781.0,0.03037]
[1764026994079,0.02099446,88782.0,88781.0,0.03037]
[1764026994916,0.323,88782.0,88781.0,0.03037]
[1764026995125,0.34399446,88782.0,88781.0,0.03037]
[1764026995582,0.34499446,88782.0,88781.0,0.05799]
[1764026995978,0.02199446,88782.0,88781.0,0.03037]
[1764026996297,0.02199446,88782.0,88781.0,0.05799]
[1764026996498,0.02299446,88782.0,88781.0,0.05799]
[1764026997257,0.002,88782.0,88781.0,0.05799]
[1764026997745,0.0230053,88782.0,88781.0,0.05799]
[1764026998111,0.02367775,88782.0,88781.0,0.05799]
[1764026998327,0.02367775,88782.0,88771.0,0.00712]
[1764026998328,0.01126405,88778.0,88771.0,0.00712]
[1764026998526,0.01126455,88774.0,88771.0,0.00712]
[1764026998969,0.22529566,88773.0,88771.0,0.00712]
[1764026999291,0.23655824,88774.0,88771.0,0.00712]
[1764026999502,0.01126455,88774.0,88771.0,0.00712]
[1764026999637,0.01126455,88774.0,88768.0,0.01278]
[1764026999978,0.01126443,88775.0,88768.0,0.01278]
[1764027000317,0.01126443,88775.0,88760.0,0.03888633]
[1764027000318,0.01126608,88762.0,88756.0,0.01278]
[1764027000523,0.10701753,88762.0,88751.0,0.01278]
[1764027000726,0.60456377,88760.0,88751.0,0.06293495]
[1764027001133,0.323,88760.0,88759.0,0.03137]
[1764027001327,0.01126582,88764.0,88759.0,0.03137]
[1764027001535,0.01126582,88764.0,88750.0,0.01278]
[1764027001536,0.01126709,88754.0,88745.0,0.01278]
[1764027001848,0.01126824,88745.0,88742.0,0.01278]
[1764027002031,0.01126824,88745.0,88742.0,0.01317552]
[1764027002666,0.22536734,88744.0,88742.0,0.01317552]
[1764027002795,0.01126824,88745.0,88742.0,0.00039552]
[1764027002796,0.23663494,88745.0,88742.0,0.00039552]
[1764027002996,0.22536965,88744.0,88742.0,0.00239552]
[1764027003497,0.22536965,88744.0,88742.0,0.00139552]
[1764027003791,0.3317,88743.0,88742.0,0.00139552]
[1764027003993,0.36138729,88743.0,88742.0,0.00139552]
[1764027004132,0.58675717,88743.0,88742.0,0.00139552]
[1764027004337,2.56576988,88743.0,88742.0,0.00139552]
[1764027004737,2.3317,88743.0,88742.0,0.00139552]
[1764027004956,2.3317,88743.0,88742.0,0.00039552]
[1764027005344,2.3317,88743.0,88742.0,0.00139552]
[1764027005927,2.3317,88743.0,88742.0,0.00039552]
[1764027006484,2.3327,88743.0,88742.0,0.00039552]
[1764027007130,2.3414,88743.0,88742.0,0.00039552]